fUST/lending_fUST_20250716
["ID","MTS","AMOUNT","RATE_DAILY","PERIOD"]
[372339938,1752600652736,-520.7878615,0.00020271,2]
[372339939,1752600652746,-233.0719702,0.00020271,2]
[372339940,1752600652756,-460.0,0.00020271,2]
[372339941,1752600652769,-460.0,0.00020271,2]
[372339942,1752600652778,-382.97215354,0.00020272,2]
[372339943,1752600685044,460.0,0.00019451,2]
[372339944,1752600685304,176.41,0.00019725,2]
[372339945,1752600788567,1711.64860922,0.00019655,2]
[372339946,1752600788747,471.05499468,0.00019655,2]
[372339949,1752600930492,3448.5033998,0.00019548,2]
[372339953,1752601124890,460.0,0.00019451,2]
[372339954,1752601142676,176.160802,0.00019544,2]
[372339955,1752601170783,1186.8957164,0.0002,2]
[372339958,1752601284641,193.006495,0.00013699,2]
[372339960,1752601299061,1110.8645935,0.00019365,2]
[372339961,1752601305683,2953.51399862,0.00019673,2]
[372339962,1752601305709,8809.55809788,0.00019673,2]
[372339965,1752601507265,150.198901,0.00022759,32]
[372339966,1752601540099,-193.006495,0.00020187,2]
[372339967,1752601540122,-300.0,0.0002027,2]
[372339968,1752601540144,-1200.0,0.0002027,2]
[372339969,1752601540168,-411.58652368,0.00020271,2]
[372339970,1752601569755,158.62891,0.00019896,2]
[372339971,1752601586283,889.108602,0.00019678,2]
[372339972,1752601625084,-300.0,0.0002027,2]
[372339973,1752601625109,-48.41347632,0.00020271,2]
[372339974,1752601625130,-465.19038475,0.00020271,2]
[372339975,1752601625153,-460.0,0.00020271,2]
[372339976,1752601625176,-460.55266703,0.00020271,2]
[372339977,1752601625197,-413.39621668,0.00020271,2]
[372339978,1752601625219,-460.0,0.00020271,2]
[372339979,1752601625240,-460.0,0.00020271,2]
[372339980,1752601625261,-460.0,0.00020271,2]
[372339981,1752601625283,-510.08,0.00020271,2]
[372339982,1752601625303,-530.91107712,0.00020271,2]
[372339983,1752601625324,-460.0,0.00020271,2]
[372339984,1752601625347,-491.94,0.00020271,2]
[372339985,1752601625373,-440.28383388,0.00020271,2]
[372339986,1752601627259,-19.71616612,0.00020271,2]
[372339987,1752601627281,-460.0,0.00020271,2]
[372339988,1752601627301,-460.0,0.00020271,2]
[372339989,1752601627321,-460.0,0.00020271,2]
[372339990,1752601627340,-113.69779953,0.00020271,2]
[372340008,1752601832472,-1200.0,0.0002027,2]
[372340009,1752601832482,-208.77285714,0.0002027,2]
[372340010,1752601832494,-91.22714286,0.0002027,2]
[372340011,1752601832504,-300.0,0.0002027,2]
[372340012,1752601832514,-346.30220047,0.00020271,2]
[372340013,1752601832523,-408.68,0.00020271,2]
[372340014,1752601832533,-460.0,0.00020271,2]
[372340015,1752601832543,-724.73,0.00020271,2]
[372340016,1752601832553,-722.4,0.00020271,2]
[372340017,1752601832562,-356.11,0.00020271,2]
[372340018,1752601832572,-467.42409582,0.00020271,2]
[372340020,1752601832581,-460.0,0.00020271,2]
[372340022,1752601832590,-460.0,0.00020271,2]
[372340023,1752601832601,-460.0,0.00020271,2]
[372340025,1752601832611,-871.14,0.00020271,2]
[372340027,1752601832620,-460.0,0.00020271,2]
[372340029,1752601832629,-460.0,0.00020271,2]
[372340031,1752601832638,-460.0,0.00020271,2]
[372340032,1752601832647,-726.44,0.00020271,2]
[372340033,1752601832656,-460.0,0.00020271,2]
[372340034,1752601832666,-460.0,0.00020271,2]
[372340035,1752601832675,-460.0,0.00020271,2]
[372340036,1752601832684,-460.0,0.00020271,2]
[372340037,1752601832693,-501.9105846,0.00020271,2]
[372340038,1752601832703,-477.94,0.00020271,2]
[372340039,1752601832712,-460.0,0.00020271,2]
[372340040,1752601832722,-460.0,0.00020271,2]
[372340041,1752601832731,-794.0,0.00020271,2]
[372340042,1752601832740,-208.6,0.00020271,2]
[372340043,1752601832749,-460.0,0.00020271,2]
[372340044,1752601832758,-160.0,0.00020271,2]
[372340045,1752601832768,-151.0,0.00020272,2]
[372340046,1752601832777,-260.39393075,0.00020272,2]
[372340047,1752601832787,-1000.0,0.000204,2]
[372340048,1752601832797,-428.446763,0.00020482,8]
[372340049,1752601832806,-151.0,0.00020535,2]
[372340050,1752601832815,-151.0,0.00020538,2]
[372340051,1752601832824,-460.0,0.00020544,2]
[372340052,1752601832833,-151.0,0.00020545,2]
[372340053,1752601832843,-460.0,0.00020545,2]
[372340054,1752601832853,-461.02054358,0.00020545,2]
[372340055,1752601832863,-173.914,0.00020545,2]
[372340056,1752601832872,-460.0,0.00020545,2]
[372340057,1752601832881,-197.55499953,0.00020545,2]
[372340058,1752601832891,-460.0,0.00020545,2]
[372340059,1752601832901,-460.0,0.00020545,2]
[372340060,1752601832910,-724.73,0.00020545,2]
[372340061,1752601832920,-722.4,0.00020545,2]
[372340062,1752601832929,-460.0,0.00020545,2]
[372340063,1752601832939,-460.0,0.00020545,2]
[372340064,1752601832949,-871.14,0.00020545,2]
[372340065,1752601832959,-460.0,0.00020545,2]
[372340066,1752601832968,-239.74042301,0.00020545,2]
[372340067,1752601832978,-726.44,0.00020545,2]
[372340068,1752601832987,-460.0,0.00020545,2]
[372340069,1752601832998,-460.0,0.00020545,2]
[372340070,1752601833007,-460.0,0.00020545,2]
[372340071,1752601833017,-460.0,0.00020545,2]
[372340072,1752601833026,-794.0,0.00020545,2]
[372340073,1752601833037,-460.0,0.00020545,2]
[372340074,1752601833047,-271.57540475,0.00020714,2]
[372340075,1752601833056,-310.07137703,0.00020719,2]
[372340076,1752601833066,-263.45765149,0.00020803,2]
[372340077,1752601833075,-460.0,0.00020819,2]
[372340078,1752601833085,-460.0,0.00020819,2]
[372340079,1752601833096,-724.73,0.00020819,2]
[372340080,1752601833106,-722.4,0.00020819,2]
[372340081,1752601833116,-250.43,0.00020819,2]
[372340082,1752601833128,-460.0,0.00020819,2]
[372340083,1752601833138,-871.14,0.00020819,2]
[372340084,1752601833148,-460.0,0.00020819,2]
[372340085,1752601833159,-726.44,0.00020819,2]
[372340086,1752601833169,-460.0,0.00020819,2]
[372340087,1752601833178,-460.0,0.00020819,2]
[372340088,1752601833187,-460.0,0.00020819,2]
[372340089,1752601833201,-794.0,0.00020819,2]
[372340090,1752601833212,-200.14,0.00020819,2]
[372340091,1752601833231,-263.45765149,0.00020875,2]
[372340092,1752601833242,-429.0948676,0.000209,2]
[372340093,1752601833253,-429.0948676,0.000209,2]
[372340094,1752601833263,-429.0948676,0.000209,2]
[372340095,1752601833273,-429.0948676,0.000209,2]
[372340096,1752601833283,-576.7692041,0.000209,2]
[372340097,1752601833293,-429.0948676,0.000209,2]
[372340098,1752601833304,-1000.0,0.000209,2]
[372340099,1752601833314,-429.0948676,0.000209,2]
[372340100,1752601833324,-12603.13032295,0.00020901,2]
[372340101,1752601833334,-160.0,0.00020903,2]
[372340102,1752601833346,-160.0,0.00020903,2]
[372340103,1752601833356,-468.75,0.00020904,2]
[372340104,1752601833367,-520.84375,0.00020904,2]
[372340105,1752601833377,-1866.05105903,0.00020946,2]
[372340106,1752601833387,-285.31612638,0.00020946,2]
[372340107,1752601833397,-263.45765149,0.00020946,2]
[372340108,1752601833407,-151.0,0.0002099,2]
[372340109,1752601833416,-307.19465992,0.00021036,2]
[372340110,1752601833426,-496.13,0.00021036,3]
[372340111,1752601833436,-248.06,0.00021036,3]
[372340112,1752601833445,-744.23,0.00021036,3]
[372340113,1752601833455,-3539.65,0.00021036,10]
[372340114,1752601833465,-2949.71,0.00021036,10]
[372340115,1752601833475,-2458.09,0.00021036,10]
[372340116,1752601833485,-2048.41,0.00021036,10]
[372340117,1752601833495,-420.86271994,0.00021045,2]
[372340118,1752601833505,-500.0,0.00021045,2]
[372340119,1752601833515,-500.0,0.00021045,2]
[372340120,1752601833524,-500.0,0.00021045,2]
[372340121,1752601833534,-500.0,0.00021045,2]
[372340122,1752601833544,-500.0,0.00021045,2]
[372340123,1752601833553,-500.0,0.00021045,2]
[372340124,1752601833564,-500.0,0.00021045,2]
[372340125,1752601833574,-500.0,0.00021045,2]
[372340126,1752601833583,-500.0,0.00021045,2]
[372340127,1752601833594,-500.0,0.00021045,2]
[372340128,1752601833605,-500.0,0.00021045,2]
[372340129,1752601833615,-500.0,0.00021045,2]
[372340130,1752601833625,-500.0,0.00021045,2]
[372340131,1752601833635,-500.0,0.00021045,2]
[372340132,1752601833644,-500.0,0.00021045,2]
[372340133,1752601833654,-484.86858252,0.00021045,2]
[372340134,1752601833664,-370000.0,0.00021046,2]
[372340135,1752601833674,-17662.46045321,0.00021046,3]
[372340136,1752601833842,-460.0,0.00021093,2]
[372340137,1752601833854,-467.72299978,0.00021093,2]
[372340138,1752601833864,-724.73,0.00021093,2]
[372340139,1752601833875,-722.4,0.00021093,2]
[372340140,1752601833885,-460.0,0.00021093,2]
[372340141,1752601833895,-871.14,0.00021093,2]
[372340142,1752601833905,-726.44,0.00021093,2]
[372340143,1752601833915,-460.0,0.00021093,2]
[372340144,1752601833925,-460.0,0.00021093,2]
[372340145,1752601833935,-460.0,0.00021093,2]
[372340146,1752601833946,-794.0,0.00021093,2]
[372340147,1752601833956,-6909.16737358,0.00021146,2]
[372340148,1752601833965,-207.4,0.00021146,2]
[372340149,1752601833975,-151.0,0.00021146,2]
[372340150,1752601833985,-151.0,0.00021146,2]
[372340151,1752601833995,-175.37591555,0.00021146,2]
[372340152,1752601834005,-164.87563185,0.00021235,2]
[372340153,1752601834015,-500.0,0.00021235,2]
[372340154,1752601834024,-724.73,0.00021367,2]
[372340155,1752601834034,-722.4,0.00021367,2]
[372340156,1752601834043,-460.0,0.00021367,2]
[372340157,1752601834053,-871.14,0.00021367,2]
[372340158,1752601834063,-726.44,0.00021367,2]
[372340159,1752601834073,-460.0,0.00021367,2]
[372340160,1752601834083,-460.0,0.00021367,2]
[372340161,1752601834093,-243.92,0.00021367,2]
[372340162,1752601834103,-794.0,0.00021367,2]
[372340163,1752601834113,-310.07137699,0.0002138,2]
[372340164,1752601834130,-1000.0,0.000214,2]
[372340165,1752601834139,-12586.7184932,0.00021448,3]
[372340166,1752601834149,-214.37129034,0.00021448,3]
[372340167,1752601834160,-2455.39,0.00021482,3]
[372340168,1752601834170,-151.0,0.00021548,2]
[372340169,1752601834179,-151.0,0.00021548,2]
[372340170,1752601834189,-215.50840239,0.00021591,2]
[372340171,1752601834200,-230.76969291,0.00021591,2]
[372340172,1752601834210,-214.37129034,0.00021591,2]
[372340173,1752601834219,-160.0,0.00021591,2]
[372340174,1752601834229,-838.84061749,0.00021591,2]
[372340175,1752601834238,-160.0,0.00021592,2]
[372340176,1752601834248,-1732.56,0.000216,2]
[372340177,1752601834258,-4000.0,0.00021628,3]
[372340178,1752601834267,-724.73,0.00021641,2]
[372340179,1752601834277,-722.4,0.00021641,2]
[372340180,1752601834287,-460.0,0.00021641,2]
[372340181,1752601834297,-871.14,0.00021641,2]
[372340182,1752601834307,-726.44,0.00021641,2]
[372340183,1752601834317,-460.0,0.00021641,2]
[372340184,1752601834326,-460.0,0.00021641,2]
[372340185,1752601834336,-794.0,0.00021641,2]
[372340186,1752601834347,-500.0,0.00021682,2]
[372340187,1752601834357,-160.0,0.00021694,2]
[372340188,1752601834367,-801.87,0.000217,2]
[372340189,1752601834377,-151.0,0.00021709,2]
[372340190,1752601834387,-326.39071524,0.00021773,2]
[372340191,1752601834397,-6000.0,0.00021792,3]
[372340192,1752601834407,-21171.46,0.000218,2]
[372340193,1752601834416,-151.0,0.000218,2]
[372340194,1752601834425,-151.0,0.000218,2]
[372340195,1752601834435,-151.0,0.000218,2]
[372340196,1752601834444,-151.0,0.000218,2]
[372340197,1752601834454,-151.0,0.000218,2]
[372340198,1752601834463,-151.0,0.000218,2]
[372340199,1752601834472,-151.0,0.000218,2]
[372340200,1752601834482,-151.0,0.000218,2]
[372340201,1752601834491,-258.939145,0.000218,2]
[372340202,1752601834501,-258.939145,0.000218,2]
[372340203,1752601834510,-151.0,0.000218,2]
[372340204,1752601834519,-151.0,0.000218,2]
[372340205,1752601834529,-151.0,0.000218,2]
[372340206,1752601834538,-183.79178,0.000218,2]
[372340207,1752601834547,-183.79178,0.000218,2]
[372340208,1752601834557,-165.307052,0.000218,2]
[372340209,1752601834566,-151.0,0.000218,2]
[372340210,1752601834576,-165.307052,0.000218,2]
[372340211,1752601834586,-151.0,0.000218,2]
[372340212,1752601834595,-1176.49,0.000219,2]
[372340213,1752601834605,-2541.8,0.000219,2]
[372340214,1752601834614,-151.0,0.000219,2]
[372340215,1752601834623,-151.0,0.000219,2]
[372340216,1752601834633,-151.0,0.000219,2]
[372340217,1752601834642,-151.0,0.000219,2]
[372340218,1752601834651,-151.0,0.000219,2]
[372340219,1752601834661,-151.0,0.000219,2]
[372340220,1752601834671,-151.0,0.000219,2]
[372340221,1752601834680,-151.0,0.000219,2]
[372340222,1752601834689,-172.636,0.000219,2]
[372340223,1752601834698,-151.0,0.000219,2]
[372340224,1752601834707,-151.0,0.000219,2]
[372340225,1752601834717,-151.0,0.000219,2]
[372340226,1752601834727,-430.767542,0.000219,2]
[372340227,1752601834736,-430.767542,0.000219,2]
[372340228,1752601834745,-151.0,0.000219,2]
[372340229,1752601834755,-168.766622,0.000219,2]
[372340230,1752601834764,-1000.0,0.000219,2]
[372340231,1752601834773,-1866.05105902,0.0002191,2]
[372340232,1752601834783,-150.198901,0.00021914,2]
[372340233,1752601834792,-724.73,0.00021915,2]
[372340234,1752601834802,-722.4,0.00021915,2]
[372340235,1752601834811,-460.0,0.00021915,2]
[372340236,1752601834820,-871.14,0.00021915,2]
[372340237,1752601834829,-726.44,0.00021915,2]
[372340238,1752601834839,-460.0,0.00021915,2]
[372340239,1752601834849,-460.0,0.00021915,2]
[372340240,1752601834859,-794.0,0.00021915,2]
[372340241,1752601834869,-500.0,0.00021917,2]
[372340242,1752601834879,-500.0,0.00021917,2]
[372340243,1752601834890,-500.0,0.00021917,2]
[372340244,1752601834899,-500.0,0.00021917,2]
[372340245,1752601834909,-500.0,0.00021917,2]
[372340246,1752601834919,-500.0,0.00021917,2]
[372340247,1752601834930,-500.0,0.00021917,2]
[372340248,1752601834939,-159.0,0.00022,2]
[372340249,1752601834949,-310.07137699,0.0002204,2]
[372340250,1752601834958,-500.0,0.00022189,2]
[372340251,1752601834968,-724.73,0.00022189,2]
[372340252,1752601834978,-722.4,0.00022189,2]
[372340253,1752601834987,-460.0,0.00022189,2]
[372340254,1752601834997,-871.14,0.00022189,2]
[372340255,1752601835007,-726.44,0.00022189,2]
[372340256,1752601835016,-460.0,0.00022189,2]
[372340257,1752601835026,-563.95713292,0.00022189,2]
[372340258,1752601835035,-794.0,0.00022189,2]
[372340259,1752601835044,-159.0,0.00022192,7]
[372340260,1752601835054,-151.0,0.00022229,7]
[372340261,1752601835063,-260.0,0.00022242,2]
[372340262,1752601835073,-11019.85321464,0.000223,2]
[372340263,1752601835082,-226.582455,0.000223,7]
[372340264,1752601835091,-150.198901,0.00022336,2]
[372340265,1752601835102,-151.0,0.00022388,7]
[372340266,1752601835112,-151.0,0.00022388,7]
[372340267,1752601835123,-151.0,0.00022388,7]
[372340268,1752601835133,-1000.0,0.000224,2]
[372340269,1752601835142,-992.26,0.00022406,3]
[372340270,1752601835152,-496.12,0.00022406,3]
[372340271,1752601835164,-151.0,0.00022438,7]
[372340272,1752601835173,-151.0,0.00022438,7]
[372340273,1752601835183,-150.198901,0.00022438,5]
[372340274,1752601835197,-183.79178,0.00022438,7]
[372340275,1752601835209,-183.79178,0.00022438,7]
[372340276,1752601835222,-165.307052,0.00022438,7]
[372340277,1752601835234,-151.0,0.00022438,7]
[372340278,1752601835247,-165.307052,0.00022438,7]
[372340279,1752601835259,-258.939145,0.00022463,7]
[372340280,1752601835270,-258.939145,0.00022463,7]
[372340281,1752601835280,-151.0,0.00022463,7]
[372340282,1752601835291,-500.0,0.00022463,2]
[372340283,1752601835303,-724.73,0.00022463,2]
[372340284,1752601835315,-722.4,0.00022463,2]
[372340285,1752601835326,-460.0,0.00022463,2]
[372340286,1752601835337,-871.14,0.00022463,2]
[372340287,1752601835348,-726.44,0.00022463,2]
[372340288,1752601835359,-460.0,0.00022463,2]
[372340289,1752601835370,-794.0,0.00022463,2]
[372340290,1752601835382,-500.0,0.00022473,2]
[372340291,1752601835394,-500.0,0.00022473,2]
[372340292,1752601835405,-618.49287827,0.00022473,2]
[372340293,1752601835415,-500.0,0.00022473,2]
[372340294,1752601835426,-500.0,0.00022473,2]
[372340295,1752601835438,-150031.00299894,0.0002249,7]
[372340296,1752601835449,-151.0,0.0002249,7]
[372340297,1752601835460,-151.0,0.0002249,7]
[372340298,1752601835472,-151.0,0.0002249,7]
[372340299,1752601835483,-251.84143,0.0002249,7]
[372340300,1752601835494,-258.939145,0.0002249,7]
[372340301,1752601835505,-151.0,0.0002249,7]
[372340302,1752601835516,-258.939145,0.0002249,7]
[372340303,1752601835527,-151.0,0.0002249,7]
[372340304,1752601835539,-183.79178,0.0002249,7]
[372340305,1752601835550,-183.79178,0.0002249,7]
[372340306,1752601835561,-165.307052,0.0002249,7]
[372340307,1752601835572,-151.0,0.0002249,7]
[372340308,1752601835584,-165.307052,0.0002249,7]
[372340309,1752601835595,-151.0,0.00022503,7]
[372340310,1752601835608,-215.0738,0.00022515,2]
[372340311,1752601835618,-150.198901,0.00022578,7]
[372340312,1752601835630,-150.198901,0.00022634,8]
[372340313,1752601835640,-150.198901,0.00022647,7]
[372340314,1752601835650,-150.198901,0.00022678,8]
[372340315,1752601835659,-310.07137699,0.00022701,2]
[372340316,1752601835669,-150.198901,0.00022715,7]
[372340317,1752601835679,-500.0,0.00022737,2]
[372340318,1752601835690,-724.73,0.00022737,2]
[372340319,1752601835700,-722.4,0.00022737,2]
[372340320,1752601835710,-460.0,0.00022737,2]
[372340321,1752601835721,-871.14,0.00022737,2]
[372340322,1752601835733,-726.44,0.00022737,2]
[372340323,1752601835743,-460.0,0.00022737,2]
[372340324,1752601835753,-794.0,0.00022737,2]
[372340325,1752601835765,-150.198901,0.00022758,2]
[372340326,1752601835775,-150.198901,0.00022764,9]
[372340327,1752601835786,-360.0,0.0002279,2]
[372340328,1752601835797,-1732.56,0.000228,7]
[372340329,1752601835807,-150.198901,0.00022809,5]
[372340330,1752601835818,-1866.05105902,0.00022874,2]
[372340331,1752601835830,-1000.0,0.000229,2]
[372340332,1752601835841,-1000.0,0.00022989,2]
[372340333,1752601835853,-1000.0,0.00022989,3]
[372340334,1752601835865,-1000.0,0.00022989,4]
[372340335,1752601835876,-525.51022752,0.00023,3]
[372340336,1752601835886,-313.15,0.00023,6]
[372340337,1752601835896,-978.26,0.00023,2]
[372340338,1752601835905,-150.0,0.00023,7]
[372340339,1752601835915,-168.0,0.00023,7]
[372340340,1752601835925,-160.0,0.00023,3]
[372340341,1752601835935,-838.84061749,0.00023,3]
[372340342,1752601835945,-520.84375,0.00023,3]
[372340343,1752601835955,-155.67567,0.0002301,7]
[372340344,1752601835967,-151.0,0.0002301,7]
[372340345,1752601835979,-151.0,0.00023011,7]
[372340346,1752601835990,-151.0,0.00023011,7]
[372340347,1752601836002,-430.767542,0.00023011,7]
[372340348,1752601836011,-430.767542,0.00023011,7]
[372340349,1752601836021,-500.0,0.00023011,2]
[372340350,1752601836031,-724.73,0.00023011,2]
[372340351,1752601836041,-722.4,0.00023011,2]
[372340352,1752601836051,-454.25652229,0.00023011,2]
[372340353,1752601836061,-871.14,0.00023011,2]
[372340354,1752601836073,-726.44,0.00023011,2]
[372340355,1752601836084,-258.9,0.00023011,2]
[372340356,1752601836093,-794.0,0.00023011,2]
[372340357,1752601836104,-159.0,0.00023014,7]
[372340358,1752601836114,-1000.0,0.00023021,2]
[372340359,1752601836128,-1000.0,0.00023021,2]
[372340360,1752601836137,-1000.0,0.00023021,2]
[372340361,1752601836147,-151.0,0.00023028,7]
[372340362,1752601836156,-151.0,0.00023028,7]
[372340363,1752601836167,-151.0,0.00023028,7]
[372340364,1752601836177,-151.0,0.00023028,7]
[372340365,1752601836188,-150.198901,0.00023041,32]
[372340366,1752601836199,-15669.94,0.000231,7]
[372340367,1752601836209,-151.0,0.000231,7]
[372340368,1752601836219,-151.0,0.000231,7]
[372340369,1752601836229,-151.0,0.000231,7]
[372340370,1752601836239,-151.0,0.000231,7]
[372340371,1752601836249,-151.0,0.000231,7]
[372340372,1752601836259,-151.0,0.000231,7]
[372340373,1752601836269,-183.79178,0.000231,7]
[372340374,1752601836279,-183.79178,0.000231,7]
[372340375,1752601836290,-165.307052,0.000231,7]
[372340376,1752601836301,-151.0,0.000231,7]
[372340377,1752601836311,-165.307052,0.000231,7]
[372340378,1752601836322,-168.0,0.00023154,2]
[372340379,1752601836332,-151.0,0.00023185,7]
[372340380,1752601836342,-150.198901,0.00023186,9]
[372340381,1752601836353,-21171.46,0.000232,2]
[372340382,1752601836364,-151.0,0.000232,7]
[372340383,1752601836375,-258.939145,0.000232,7]
[372340384,1752601836386,-258.939145,0.000232,7]
[372340385,1752601836396,-168.0,0.00023222,2]
[372340386,1752601836406,-151.0,0.00023285,7]
[372340387,1752601836416,-151.0,0.00023285,7]
[372340388,1752601836427,-430.767542,0.00023285,7]
[372340389,1752601836438,-430.767542,0.00023285,7]
[372340390,1752601836448,-500.0,0.00023285,2]
[372340391,1752601836458,-724.73,0.00023285,2]
[372340392,1752601836469,-722.4,0.00023285,2]
[372340393,1752601836479,-871.14,0.00023285,2]
[372340394,1752601836489,-726.44,0.00023285,2]
[372340395,1752601836499,-794.0,0.00023285,2]
[372340396,1752601836510,-151.0,0.00023288,7]
[372340397,1752601836520,-245.0,0.00023288,7]
[372340398,1752601836530,-151.0,0.00023293,7]
[372340399,1752601836540,-151.0,0.00023293,7]
[372340400,1752601836551,-801.87,0.000233,7]
[372340401,1752601836561,-150.198901,0.00023324,32]
[372340402,1752601836571,-168.0,0.00023331,2]
[372340403,1752601836581,-460.0,0.00023338,2]
[372340404,1752601836592,-168.0,0.00023347,2]
[372340405,1752601836602,-310.07137699,0.00023362,2]
[372340406,1752601836612,-168.0,0.00023417,2]
[372340407,1752601836622,-168.467493,0.00023425,7]
[372340408,1752601836632,-168.0,0.00023425,2]
[372340409,1752601836776,-150.198901,0.00023431,10]
[372340410,1752601836794,-713.95173225,0.00023444,5]
[372340411,1752601836804,-500.0,0.00023456,2]
[372340412,1752601836813,-647.0,0.0002349,2]
[372340413,1752601836822,-2155.0,0.0002349,2]
[372340414,1752601836831,-407.0,0.0002349,2]
[372340415,1752601836840,-968.0,0.0002349,2]
[372340416,1752601836851,-500.0,0.00023519,2]
[372340417,1752601836865,-151.0,0.00023559,7]
[372340418,1752601836875,-183.79178,0.00023559,7]
[372340419,1752601836885,-183.79178,0.00023559,7]
[372340420,1752601836895,-165.307052,0.00023559,7]
[372340421,1752601836906,-151.0,0.00023559,7]
[372340422,1752601836916,-165.307052,0.00023559,7]
[372340423,1752601836927,-724.73,0.00023559,2]
[372340424,1752601836938,-722.4,0.00023559,2]
[372340425,1752601836947,-871.14,0.00023559,2]
[372340426,1752601836957,-726.44,0.00023559,2]
[372340427,1752601836968,-794.0,0.00023559,2]
[372340428,1752601836978,-151.0,0.0002356,7]
[372340429,1752601836988,-200.0,0.00023561,2]
[372340430,1752601836999,-200.0,0.00023561,2]
[372340431,1752601837010,-200.0,0.00023561,2]
[372340432,1752601837019,-200.0,0.00023561,2]
[372340433,1752601837030,-200.0,0.00023561,2]
[372340434,1752601837039,-200.0,0.00023561,2]
[372340435,1752601837049,-250.20445081,0.00023561,2]
[372340436,1752601837059,-1500.0,0.00023568,2]
[372340437,1752601837069,-151.0,0.000237,7]
[372340438,1752601837078,-151.0,0.00023713,7]
[372340439,1752601837088,-151.0,0.00023713,7]
[372340440,1752601837100,-150.198901,0.00023742,10]
[372340441,1752601837110,-249.09067884,0.00023773,2]
[372340442,1752601837123,-18330.22248451,0.000238,3]
[372340443,1752601837133,-7281.13002871,0.000238,7]
[372340444,1752601837142,-160.0,0.000238,3]
[372340445,1752601837152,-230.76969291,0.000238,3]
[372340446,1752601837163,-215.50840239,0.000238,3]
[372340447,1752601837172,-151.0,0.000238,7]
[372340448,1752601837182,-151.0,0.000238,7]
[372340449,1752601837191,-151.0,0.000238,7]
[372340450,1752601837203,-246.095708,0.000238,7]
[372340451,1752601837213,-151.0,0.000238,7]
[372340452,1752601837226,-151.0,0.000238,7]
[372340453,1752601837235,-151.0,0.000238,7]
[372340454,1752601837245,-276.095856,0.000238,7]
[372340455,1752601837255,-151.0,0.000238,7]
[372340456,1752601837265,-258.939145,0.000238,7]
[372340457,1752601837275,-258.939145,0.000238,7]
[372340458,1752601837284,-181.005543,0.00023808,2]
[372340459,1752601837295,-454.6664248,0.00023808,2]
[372340460,1752601837304,-576.7692041,0.00023808,2]
[372340461,1752601837314,-159.7039591,0.00023808,2]
[372340462,1752601837324,-165.1345751,0.00023808,2]
[372340463,1752601837334,-177.9926445,0.00023808,2]
[372340464,1752601837344,-576.7692041,0.00023808,2]
[372340465,1752601837355,-153.0,0.00023808,2]
[372340466,1752601837365,-159.7039591,0.00023808,2]
[372340467,1752601837375,-159.7039591,0.00023808,2]
[372340468,1752601837384,-177.9926445,0.00023808,2]
[372340469,1752601837394,-576.7692041,0.00023808,2]
[372340470,1752601837403,-159.4844237,0.00023808,2]